[Event "FRA-ch Teams Top 16-Bas 2022"]
[Site "Chartres"]
[Date "2022.06.17"]
[Round "9.15"]
[White "Roubert, Emile"]
[Black "Kuhn, Clement"]
[Result "0-1"]
[ECO "B69"]
[WhiteElo "2027"]
[BlackElo "2280"]
[Annotator "TA"]
[PlyCount "160"]
[EventDate "2022.06.16"]
[EventType "team-tourn"]
[EventCountry "FRA"]
[SourceTitle "playchess.com"]
[Source "ChessBase"]
[SourceQuality "1"]
[TimeControl "40/5400+30:1800+30"]

{[%evp 30,160,32,37,30,0,0,6,7,0,25,10,32,39,41,0,0,-73,16,20,20,16,56,46,68,34,35,31,39,38,41,29,107,34,34,24,63,18,16,25,27,0,137,88,104,18,77,83,189,99,90,46,60,0,8,0,0,0,8,0,0,0,0,0,0,0,0,0,0,0,0,0,0,0,8,-28,-28,-28,-28,-28,-28,-28,-28,-28,-24,-24,-24,-24,-24,-24,-13,-13,-13,-13,-13,-13,-13,-13,-13,-13,-13,-13,-13,-13,-11,-13,-11,-13,-13,-13,-13,-19,-8,-8,0,0,0,-12,-12,-8,-8,-8,-8,-13,-15,-39,-39,-38,-20,-29990,-29990,-29991,-29992]} 1. e4 {[%emt 0:00:03]} c5 {[%emt 0:00:21]} 2. Nf3 {[%emt 0:00:05]} d6 {[%emt 0:00:35]} 3. d4 {[%emt 0:00:10]} cxd4 {[%emt 0:00:02]} 4. Nxd4 {[%emt 0:00:07]} Nf6 {[%emt 0:00:03]} 5. Nc3 {[%emt 0:00:07]} Nc6 {[%emt 0:00:56]} 6. Bg5 {[%emt 0:00:29]} e6 {[%emt 0:00:06]} 7. Qd2 {[%emt 0:02:28]} a6 {[%emt 0:00:26]} 8. O-O-O {[%emt 0:03:34]} Bd7 {[%emt 0:00:36]} 9. f4 {[%emt 0:05:35]} Be7 {[%emt 0:00:14]} 10. Nf3 {[%emt 0:09:08]} b5 {[%emt 0:00:36]} 11. Bxf6 {[%emt 0:02:24]} gxf6 {[%emt 0:00:05]} 12. Kb1 {[%emt 0:02:33]} Qb6 {[%emt 0:00:43]} 13. f5 {[%emt 0:01:52]} O-O-O {[%emt 0:00:46]} 14. g3 {[%emt 0:01:23]} Kb8 {[%emt 0:00:28]} 15. fxe6 {[%emt 0:00:13]} fxe6 {[%emt 0:00:02]} 16. Bh3 {[%emt 0:00:24]} Na5 $1 {[%emt 0:00:25][%mdl 4] is now more promising than 16...Bc8. B69: Sicilian: Richter-Rauzer: 7...a6 8 0-0-0 Bd7 9 f4 Be7 10 Nf3 b5 11 Bxf6.} 17. Nd4 {[%emt 0:22:20]} b4 $1 {[%emt 0:03:16]} 18. Nce2 {[%emt 0:03:00]} e5 {[%emt 0:01:46][%csl LRd4,LRh3] The position is equal.} (18... Nc4 19. Qd3 d5 20. exd5 $16) 19. Bxd7 {[%emt 0:03:49]} Rxd7 {[%emt 0:00:03]} 20. Nf5 {[%emt 0:02:44]} Nc4 {[%emt 0:00:29]} 21. Qd3 $36 {[%emt 0:02:04][%mdl 2048] White has good play.} Rc8 {[%emt 0:01:22]} 22. Rhf1 {[%emt 0:06:32]} (22. Nc1 $5 {[%cal Rc1b3]}) 22... Bf8 {[%emt 0:04:17] [#]} 23. Rf3 $146 {[%emt 0:03:28] [#]} (23. Nc1 $11) ({Predecessor:} 23. Nc1 a5 24. Nb3 a4 25. Nd2 Na3+ 26. bxa3 Rc3 27. Qd5 bxa3+ 28. Nb3 axb3 29. cxb3 {½-½ (38) Krause,B (2425)-Baskin,R (2390) Magdeburg 2020}) 23... a5 {[%emt 0:05:27] Black is more active.} (23... Na3+ $1 $17 24. Ka1 (24. bxa3 $2 Rc3 $19) 24... Nxc2+ 25. Kb1 Rdc7) 24. Ne3 $11 {[%emt 0:10:01]} Nxe3 {[%emt 0:07:19]} 25. Qxe3 {[%emt 0:03:44]} Qc6 {[%emt 0:02:53]} 26. Qd3 {[%emt 0:02:59]} Be7 {[%emt 0:02:10]} 27. c3 {[%emt 0:00:57]} Rb7 {[%emt 0:06:25][%cal Of6f5] Hoping for ...f5!} 28. Rc1 {[%emt 0:03:20] cxb4 is the strong threat.} b3 {[%emt 0:11:19]} 29. a3 {[%emt 0:00:34]} Qc4 {[%emt 0:01:12]} 30. g4 {[%emt 0:01:26]} Rb5 {[%emt 0:05:06]} (30... Rd7 $11 {keeps the balance.}) 31. Ng3 {[%emt 0:04:52]} (31. Rd1 $16) 31... d5 $14 {[%emt 0:01:38]} 32. Rd1 {[%emt 0:01:40][%cal Re4d5]} d4 {[%emt 0:03:37]} 33. Qxc4 {[%emt 0:00:17]} (33. cxd4 Qc2+ 34. Ka1 Rb6 35. Qxc2 bxc2 $11) 33... Rxc4 {[%emt 0:00:02]} 34. cxd4 {[%emt 0:00:54]} exd4 {[%emt 0:05:12]} 35. Ne2 {[%emt 0:00:55]} Bc5 {[%emt 0:07:56]} (35... a4 $1 $11) 36. Rxf6 {[%emt 0:00:27]} (36. Rc1 $142 $1 {[%cal Rc1c4]} Rxc1+ 37. Nxc1) 36... Rb7 $16 {[%emt 0:00:13][%cal Od4d3]} 37. Rf3 {[%emt 0:00:37]} (37. Nf4 $16) 37... d3 {[%emt 0:01:33] [#]} (37... a4 $11) 38. Nc3 $1 {[%emt 0:00:46]} Bd6 {[%emt 0:03:50]} (38... Bd4 $16) 39. h3 {[%emt 0:00:21]} ({Much less strong is} 39. Rfxd3 Be5 40. Rd8+ Ka7) (39. Rdxd3 $18 Bxh2 40. Rd5) 39... Be5 {[%emt 0:00:16]} 40. Rdxd3 {[%emt 0:00:17] aiming for Rf8+.} a4 $1 {[%emt 0:01:53]} 41. Rfe3 {[%emt 0:07:20]} ({White should try} 41. Rde3 $14) 41... Re7 {[%emt 0:05:01]} 42. Re2 {[%emt 0:13:31]} Rf7 {[%emt 0:01:58]} 43. Rd1 {[%emt 0:02:59]} Rf3 {[%emt 0:02:34]} ({Don't do} 43... Bxc3 44. bxc3 Rxc3 45. Rd4 $16) 44. h4 {[%emt 0:01:12]} Rg3 {[%emt 0:03:41]} 45. Rf2 {[%emt 0:01:05]} Rxg4 {[%emt 0:01:56]} 46. Rf8+ {[%emt 0:00:38]} Rc8 {[%emt 0:01:44]} 47. Rxc8+ {[%emt 0:00:44]} Kxc8 {[%emt 0:00:01]} 48. Nxa4 {[%emt 0:00:14]} Rxe4 $11 {[%emt 0:00:15][%mdl 4096] Endgame KRB-KRN} 49. Nc5 {[%emt 0:00:33][%csl LRb3,LRe4]} Re2 {[%emt 0:00:54]} 50. Nd3 {[%emt 0:00:33]} Bf6 {[%emt 0:02:19]} 51. Rf1 {[%emt 0:01:24]} Bxh4 {[%emt 0:00:54]} 52. Nc1 {[%emt 0:00:37]} Re3 {[%emt 0:05:27]} 53. Rh1 {[%emt 0:00:42]} Bg5 {[%emt 0:02:00]} 54. Nxb3 $1 {[%emt 0:02:13]} Rxb3 {[%emt 0:02:00]} 55. Rxh7 {[%emt 0:00:14] KRB-KR} Bf6 {[%emt 0:00:01]} 56. Rh2 $1 {[%emt 0:00:13]} Rf3 {[%emt 0:00:20]} 57. Kc2 {[%emt 0:01:48]} Kc7 {[%emt 0:00:30]} 58. Rd2 {[%emt 0:00:22]} Kc6 {[%emt 0:00:08]} 59. Rd3 {[%emt 0:00:10]} Rf4 {[%emt 0:00:05]} 60. b4 {[%emt 0:00:50]} Be5 {[%emt 0:01:44]} 61. Kb3 {[%emt 0:00:08]} Rf2 {[%emt 0:00:33]} 62. Ka4 {[%emt 0:00:35]} Rf7 {[%emt 0:01:09]} 63. Kb3 {[%emt 0:00:21]} Rf4 {[%emt 0:00:08]} 64. Ka4 {[%emt 0:00:15]} Bd4 {[%emt 0:00:41]} 65. Rh3 {[%emt 0:00:55]} Rf5 {[%emt 0:01:59]} 66. Rg3 {[%emt 0:01:07]} Rf6 {[%emt 0:00:23]} 67. Rh3 {[%emt 0:00:27]} Kd5 {[%emt 0:00:07]} 68. Kb3 {[%emt 0:00:20]} Rf2 {[%emt 0:00:13]} 69. Rh5+ {[%emt 0:00:18]} Be5 {[%emt 0:00:02]} 70. Rh3 {[%emt 0:00:34]} Rb2+ {[%emt 0:00:11]} 71. Ka4 {[%emt 0:00:05]} Rb1 {[%emt 0:01:58]} 72. Kb5 {[%emt 0:00:15]} Rg1 {[%emt 0:01:00]} 73. Rf3 {[%emt 0:00:24]} Rg8 {[%emt 0:29:26]} 74. Rh3 {[%emt 0:02:35]} Rb8+ {[%emt 0:00:00]} 75. Ka6 {[%emt 0:00:29]} Bd4 {[%emt 0:00:00]} 76. Rh5+ {[%emt 0:01:34]} Kc4 {[%emt 0:00:00]} 77. Rh3 {[%emt 0:00:53]} Rb6+ {[%emt 0:00:00]} 78. Ka5 {[%emt 0:00:06]} Rg6 {[%emt 0:00:00]} 79. Rf3 $2 {[%emt 0:00:23][%mdl 8192]} (79. b5 $11) 79... Rg8 {[%emt 0:00:00][%cal Rg8a8]} 80. Ka6 {[%emt 0:01:21] [#]} Rg7 $1 {[%emt 0:00:00] Weighted Error Value: White=0.17 (very precise) /Black=0.17 (very precise)} 0-1

[Event "FRA-ch Teams Top 16-Bas 2022"]
[Site "Chartres"]
[Date "2022.06.17"]
[Round "9.16"]
[White "Aflalo, Sophie"]
[Black "Bourgoin, Cecile"]
[Result "1-0"]
[ECO "A12"]
[WhiteElo "2152"]
[BlackElo "1682"]
[Annotator "NA RC"]
[PlyCount "51"]
[EventDate "2022.06.16"]
[EventType "team-tourn"]
[EventCountry "FRA"]
[SourceTitle "playchess.com"]
[Source "ChessBase"]
[SourceQuality "1"]
[TimeControl "40/5400+30:1800+30"]

1. Nf3 {[%emt 0:04:07]} d5 {[%emt 1:31:00]} 2. c4 {[%emt 0:00:23]} c6 {[%emt 0:00:00]} 3. b3 {[%emt 0:00:28]} Bf5 {[%emt 0:00:00]} 4. Bb2 {[%emt 0:00:52]} e6 {[%emt 0:00:00]} 5. d3 {[%emt 0:01:52]} Nf6 {[%emt 0:00:00]} 6. Nbd2 {[%emt 0:00:37]} Nbd7 {[%emt 0:00:00]} 7. g3 {[%emt 0:01:22]} h6 {[%emt 0:00:00]} 8. Bg2 {[%emt 0:00:24]} Bc5 {[%emt 0:00:00]} 9. O-O {[%emt 0:03:32]} Qe7 {[%emt 0:00:00]} 10. e4 {[%emt 0:06:43]} dxe4 {[%emt 0:00:00]} 11. dxe4 {[%emt 0:00:28]} Bh7 {[%emt 0:00:00]} 12. e5 {[%emt 0:02:36]} Ne4 {[%emt 0:00:00]} 13. Nxe4 {[%emt 0:01:52]} Bxe4 {[%emt 0:00:00]} 14. Qe2 {[%emt 0:00:35]} Bh7 {[%emt 0:00:00]} 15. a3 {[%emt 0:00:16]} O-O {[%emt 0:00:00]} 16. b4 {[%emt 0:02:52]} Bb6 {[%emt 0:00:00]} 17. Nd2 {[%emt 0:01:10]} c5 {[%emt 0:08:00]} 18. Bxb7 {[%emt 0:04:35]} Rab8 {[%emt 0:00:00]} 19. Be4 {[%emt 0:00:17]} Bxe4 {[%emt 0:00:00]} 20. Nxe4 {[%emt 0:01:36]} cxb4 {[%emt 0:00:00]} 21. axb4 {[%emt 0:03:01]} Ra8 {[%emt 0:00:00]} 22. Rfd1 {[%emt 0:02:42]} Rfb8 {[%emt 0:00:00]} 23. Qg4 {[%emt 0:01:31]} Rb7 {[%emt 0:00:00]} 24. c5 {[%emt 0:04:17]} Bxc5 {[%emt 0:01:06]} 25. bxc5 {[%emt 0:01:08]} Nxc5 {[%emt 0:01:29]} 26. Ba3 {[%emt 0:00:38]} 1-0

[Event "FRA-ch Teams Top 16-Bas 2022"]
[Site "Chartres"]
[Date "2022.06.17"]
[Round "9.18"]
[White "Dourerassou, Jonathan"]
[Black "Eugene, Floryan"]
[Result "0-1"]
[ECO "C84"]
[WhiteElo "2446"]
[BlackElo "2370"]
[Annotator "TA"]
[PlyCount "86"]
[EventDate "2022.06.16"]
[EventType "team-tourn"]
[EventCountry "FRA"]
[SourceTitle "playchess.com"]
[Source "ChessBase"]
[SourceQuality "1"]
[TimeControl "40/5400+30:1800+30"]

{[%evp 17,86,-6,-4,-19,0,-7,0,-22,-13,-20,-12,-41,-17,-51,-33,-62,-47,-63,-46,-52,-62,-62,-33,-34,-31,-37,-29,-31,-26,-58,-20,-33,0,0,0,0,0,-37,-21,-24,-12,-84,-77,-77,-77,-81,-71,-453,-453,-482,-477,-533,-522,-721,-721,-720,-706,-754,-742,-802,-793,-2092,-763,-29990,-29990,-29990,-29991,-29993,-29992,-29996,-29997]} 1. e4 {[%emt 0:00:02]} e5 {[%emt 0:00:06]} 2. Nf3 {[%emt 0:00:05]} Nc6 {[%emt 0:00:04]} 3. Bb5 {[%emt 0:00:06]} a6 {[%emt 0:00:35]} 4. Ba4 {[%emt 0:00:06]} Nf6 {[%emt 0:00:09]} 5. O-O {[%emt 0:00:03]} Be7 {[%emt 0:00:24]} 6. Nc3 {[%emt 0:00:06]} b5 {[%emt 0:11:03]} 7. Bb3 {[%emt 0:00:24]} d6 {[%emt 0:01:08]} 8. d3 {[%emt 0:00:58] 8.a4 is becoming the main line.} Na5 {[%emt 0:07:59]} 9. h3 {[%emt 0:02:21]} O-O {[%emt 0:00:47]} 10. Bg5 {[%emt 0:06:06] C84: Closed Ruy Lopez: Unusual White 6th moves.} c6 {[%emt 0:06:53]} 11. Ne2 {[%emt 0:04:38]} h6 {[%emt 0:05:28]} 12. Be3 {[%emt 0:00:55] The position is equal.} Re8 {[%emt 0:00:43] [#]} 13. Ng3 $146 {[%emt 0:06:50]} ({Predecessor:} 13. Qd2 Bf8 14. c3 Nxb3 15. axb3 d5 16. Ng3 c5 17. exd5 Nxd5 18. c4 bxc4 19. bxc4 {0-1 (26) Allasia,J (1735)-Zhong,J (1984) Montevideo 2017}) 13... Bf8 {[%emt 0:00:52]} 14. c3 {[%emt 0:00:33]} Nxb3 {[%emt 0:01:54]} 15. Qxb3 {[%emt 0:03:35]} d5 {[%emt 0:10:26]} 16. Rfd1 {[%emt 0:10:44]} Qc7 {[%emt 0:02:03]} 17. Qc2 {[%emt 0:01:08]} Bb7 {[%emt 0:02:30]} 18. Nh2 {[%emt 0:05:31]} c5 {[%emt 0:07:38]} 19. Ng4 {[%emt 0:01:01]} Re6 {[%emt 0:01:44]} 20. Nxf6+ {[%emt 0:04:22]} Rxf6 {[%emt 0:00:03]} 21. a4 {[%emt 0:01:19]} Rd8 {[%emt 0:02:07]} 22. axb5 {[%emt 0:05:14]} axb5 {[%emt 0:00:03]} 23. exd5 {[%emt 0:02:54]} Bxd5 {[%emt 0:01:31]} (23... Rxd5 $5 {[%cal Rf6g6]} 24. h4 Rfd6 $15) 24. c4 {[%emt 0:00:12]} bxc4 {[%emt 0:03:51]} 25. dxc4 {[%emt 0:00:08]} Bc6 {[%emt 0:01:46]} 26. Rxd8 {[%emt 0:07:42]} Qxd8 {[%emt 0:00:02]} 27. Qc3 {[%emt 0:00:11]} (27. Rd1 $5 {[%cal Rd1d8]} Qc8 28. f3 $11) 27... Qc7 {[%emt 0:03:36]} 28. Qa5 {[%emt 0:13:01]} Qd6 {[%emt 0:06:09]} 29. Qe1 {[%emt 0:04:33]} (29. Qd2 $11) 29... Qe6 $17 {[%emt 0:01:41]} 30. Qe2 {[%emt 0:02:01]} Rg6 {[%emt 0:00:57]} 31. Qd3 {[%emt 0:13:00] Against f5} Bb7 $40 {[%emt 0:04:28][%cal Oh6h5][%mdl 128] White is in trouble.} 32. Rd1 $2 {[%emt 0:01:13][%mdl 8192] Loses the game.} (32. b3 $17) 32... Qc6 $19 {[%emt 0:03:17][%csl Gb7][%cal Rc6g2] [#]} 33. Qf1 {[%emt 0:01:11]} f5 {[%emt 0:00:42][%cal Bf7f5,Bf5f4][%mdl 32]} 34. Rd5 {[%emt 0:04:11]} f4 {[%emt 0:02:57]} 35. Bxc5 {[%emt 0:00:04]} Bxc5 {[%emt 0:01:02]} 36. Ne4 {[%emt 0:00:04]} Bd4 {[%emt 0:01:47]} 37. Qd3 {[%emt 0:00:59]} Qe6 {[%emt 0:01:07]} 38. Rd8+ {[%emt 0:00:42]} Kh7 {[%emt 0:00:16] Threatens to win with ...Qf5.} 39. Qf3 {[%emt 0:01:08]} Qf5 {[%emt 0:00:37]} (39... Qxc4 $142 40. Kh2 Bb6 41. Nf6+ Rxf6 42. Qd3+ Qxd3 43. Rxd3 Bxf2 44. Rb3 Rb6 45. Rd3 e4 46. Rd7 Bg3+ 47. Kh1 Rxb2 48. Rd1 e3 49. Rf1 Bxg2+ 50. Kg1 Bxf1 51. h4 Bh3 52. h5 Rb1#) 40. Nf6+ {[%emt 0:00:31]} Qxf6 {[%emt 0:00:06] Black mates.} 41. Qxb7 {[%emt 0:30:28]} Qxd8 {[%emt 0:30:05]} 42. Qe4 {[%emt 0:00:07]} Qg5 {[%emt 0:00:38]} 43. b4 {[%emt 0:00:07]} Qg3 {[%emt 0:00:11] Weighted Error Value: White=0.69/Black=0.20 (precise)} 0-1

[Event "FRA-ch Teams Top 16-Bas 2022"]
[Site "Chartres"]
[Date "2022.06.17"]
[Round "9.19"]
[White "Di Nicolantonio, Lucas"]
[Black "Eden, James"]
[Result "1-0"]
[ECO "D94"]
[WhiteElo "2399"]
[BlackElo "2273"]
[Annotator "TA"]
[PlyCount "129"]
[EventDate "2022.06.16"]
[EventType "team-tourn"]
[EventCountry "FRA"]
[SourceTitle "playchess.com"]
[Source "ChessBase"]
[SourceQuality "1"]
[TimeControl "40/5400+30:1800+30"]

{[%evp 17,129,26,32,22,31,29,66,73,79,76,127,127,193,184,173,150,159,165,250,260,308,300,264,143,142,145,139,147,153,128,130,125,130,123,142,119,131,110,125,100,137,119,111,113,131,140,165,157,221,202,283,280,377,362,380,158,147,126,147,131,142,70,70,70,70,70,118,118,111,43,822,0,111,70,125,70,99,43,1689,1072,1712,1558,1719,1423,1626,1620,1480,1293,1287,1159,568,525,5518,5314,6520,6106,4864,4731,2709,2028,12173,8734,6258,6390,4087,2585,29966,29968,29964,29961,12266,5450,6424,2593]} 1. Nf3 {[%emt 0:00:09]} Nf6 {[%emt 0:01:24]} 2. c4 {[%emt 0:00:55]} c6 {[%emt 0:01:17]} 3. Nc3 {[%emt 0:00:57]} d5 {[%emt 0:00:24]} 4. e3 {[%emt 0:00:45]} g6 {[%emt 0:04:17]} 5. d4 {[%emt 0:01:42]} Bg7 {[%emt 0:00:15]} 6. h3 {[%emt 0:02:19]} O-O {[%emt 0:01:19]} 7. Bd3 {[%emt 0:00:46]} Nbd7 {[%emt 0:05:03]} 8. O-O {[%emt 0:01:13]} Re8 {[%emt 0:01:55]} 9. cxd5 {[%emt 0:04:56]} cxd5 {[%emt 0:00:16]} 10. Bd2 {[%emt 0:01:13] [#] D94: Grünfeld: 4 Nf3 Bg7 5 e3.} b6 $146 {[%emt 0:03:51]} ({Predecessor:} 10... a6 11. Ne2 b6 12. Qb3 Bb7 13. Bb4 Ne4 14. Rfd1 Rc8 15. Rac1 Rxc1 16. Rxc1 e5 17. Nxe5 Nxe5 18. Bxe4 dxe4 19. dxe5 Bxe5 {½-½ (33) Kogan,B (2289)-Foulds,E (2359) ICCF email 2015}) 11. Rc1 {[%emt 0:06:45]} Bb7 {[%emt 0:07:58]} 12. Nb5 {[%emt 0:11:26] White is slightly better.} Rf8 {[%emt 0:07:58]} 13. Qb3 {[%emt 0:05:11]} Ne4 {[%emt 0:16:41]} (13... Ne8 $142) 14. Bb4 $1 $16 {[%emt 0:06:11]} Bf6 {[%emt 0:15:22]} (14... a5 $16) 15. Rc7 $18 {[%emt 0:11:59]} Ba6 {[%emt 0:00:42] Strongly threatening ...Bxb5.} 16. Rc2 $1 {[%emt 0:01:54]} (16. Qxd5 Bxb5 17. Bxe4 (17. Bxb5 Qxc7 18. Qxe4 a6 $11) 17... Qxc7 $11) (16. Rxa7 Rxa7 17. Nxa7 Bxd3 18. Qxd3 Ndc5 $16) 16... Bb7 {[%emt 0:04:56]} 17. Rfc1 {[%emt 0:01:28]} a6 {[%emt 0:00:47]} (17... a5 $142) 18. Nc7 $1 {[%emt 0:10:25]} Ndc5 {[%emt 0:00:54]} 19. Bxc5 {[%emt 0:08:00]} Nxc5 {[%emt 0:02:22]} 20. Rxc5 {[%emt 0:00:42]} (20. Qxb6 $6 Nxd3 21. Nxa8 (21. Qxb7 Rb8 $15) 21... Nxc1 $16) ({White has to play} 20. dxc5 $18 Qxc7 21. cxb6) 20... bxc5 $16 {[%emt 0:00:07]} 21. Nxa8 {[%emt 0:01:28] 0x0.001e64cc7fa0dp-1022s more active pieces. The black rooks are badly placed.} ({Don't do} 21. Qxb7 $6 Rb8 22. Qxd5 Qxc7 $14) 21... Qxa8 {[%emt 0:01:34]} 22. Rxc5 {[%emt 0:00:47]} Rc8 {[%emt 0:00:37] Prevents Rc7.} 23. Qc2 {[%emt 0:03:22]} e6 {[%emt 0:00:59]} 24. Rxc8+ {[%emt 0:02:36]} Qxc8 {[%emt 0:00:14]} 25. Qxc8+ {[%emt 0:00:07]} Bxc8 {[%emt 0:00:04][%mdl 4096] Endgame KBB-KBN} 26. Kf1 {[%emt 0:01:55]} Bd8 {[%emt 0:02:06]} 27. Ke2 {[%emt 0:01:28]} Kf8 {[%emt 0:02:10]} 28. Kd2 {[%emt 0:01:03]} Ke7 {[%emt 0:00:58]} 29. Kc3 {[%emt 0:00:28]} f6 {[%emt 0:00:38]} 30. b4 {[%emt 0:02:13]} Kd6 {[%emt 0:00:54]} 31. Nd2 {[%emt 0:02:05]} e5 {[%emt 0:01:15]} 32. Nb3 {[%emt 0:00:24]} e4 {[%emt 0:01:54]} (32... f5 $16 {was necessary.} 33. dxe5+ Kxe5) 33. Be2 $18 {[%emt 0:00:51]} f5 {[%emt 0:02:54]} (33... Ke7 {was called for.} 34. a4 Bd7) 34. a4 {[%emt 0:00:50][%cal Ba2a4,Ba4a5][%mdl 32]} g5 {[%emt 0:01:59]} 35. a5 {[%emt 0:04:02]} f4 {[%emt 0:01:26]} 36. exf4 {[%emt 0:03:57]} (36. Nc5 $18 {and White stays clearly on top.}) 36... gxf4 $16 {[%emt 0:00:14]} 37. f3 {[%emt 0:00:37]} Bh4 {[%emt 0:02:57]} 38. Nc5 {[%emt 0:01:43]} e3 {[%emt 0:03:13]} 39. Nxa6 {[%emt 0:00:33]} (39. Nd3 $16) 39... Bxa6 $14 {[%emt 0:00:34]} 40. Bxa6 $16 {[%emt 0:00:04] KB-KB} Be1+ {[%emt 0:00:20]} 41. Kb3 {[%emt 0:01:25]} h6 {[%emt 0:00:54]} (41... h5 $14) 42. Be2 {[%emt 0:07:44]} Kc7 {[%emt 0:03:34]} 43. Ka4 {[%emt 0:03:46]} (43. a6 $16) 43... Kc6 $2 {[%emt 0:04:15][%mdl 8192]} (43... Bc3 $14) 44. Kb3 $2 {[%emt 0:01:04]} (44. b5+ $1 $18 {and the rest is easy.} Kb7 45. b6) 44... Kc7 $1 {[%emt 0:00:31]} 45. Bf1 {[%emt 0:03:10] White stays focused until the end.} Kb7 {[%emt 0:03:22]} ({Black should try} 45... h5 $14) 46. Bd3 {[%emt 0:02:47]} (46. Ka4 $16) 46... Kc7 {[%emt 0:00:20]} 47. Ka4 {[%emt 0:02:01]} (47. a6 $16) 47... Kc6 $2 {[%emt 0:00:58][%mdl 8192] [#]} (47... Bc3 $14) 48. b5+ $1 $18 {[%emt 0:02:17]} Kc7 {[%emt 0:00:56] [#]} 49. b6+ $1 {[%emt 0:00:12]} Kc6 {[%emt 0:01:50]} 50. b7 {[%emt 0:00:09]} Kc7 {[%emt 0:04:12]} 51. Kb5 {[%emt 0:01:19]} ({Weaker is} 51. a6 Bc3 52. Kb5 Bxd4 $16) 51... Bc3 {[%emt 0:01:06]} 52. a6 {[%emt 0:03:15]} Bxd4 {[%emt 0:00:48]} 53. b8=Q+ {[%emt 0:00:10]} Kxb8 {[%emt 0:00:04]} 54. Kc6 {[%emt 0:00:04]} Ka7 {[%emt 0:02:21]} 55. Kxd5 {[%emt 0:00:06]} Bb6 {[%emt 0:00:31]} 56. Ke5 {[%emt 0:01:40]} Bc7+ {[%emt 0:00:09]} 57. Kf6 {[%emt 0:00:38]} Bd8+ {[%emt 0:13:15]} 58. Kf5 {[%emt 0:00:47]} Bg5 {[%emt 0:00:10]} 59. Kg4 {[%emt 0:00:32]} Kb6 {[%emt 0:00:07]} 60. h4 {[%emt 0:00:20]} Be7 {[%emt 0:00:10]} 61. Kxf4 {[%emt 0:00:14]} Bxh4 {[%emt 0:00:13]} 62. Kxe3 {[%emt 0:00:07]} Be7 {[%emt 0:00:26]} 63. Ke4 {[%emt 0:01:31]} Bc5 {[%emt 0:00:08]} 64. Ke5 {[%emt 0:00:42]} (64. g4 $142 Kc7 65. Kd5) 64... Kc7 {[%emt 0:00:18]} 65. f4 {[%emt 0:00:33] Weighted Error Value: White=0.34/Black=0.27 (precise)} 1-0

[Event "FRA-ch Teams Top 16-Bas 2022"]
[Site "Chartres"]
[Date "2022.06.17"]
[Round "9.20"]
[White "Saatdjian, Thomas"]
[Black "Hutois, Mickael"]
[Result "1-0"]
[ECO "E16"]
[WhiteElo "2271"]
[BlackElo "2238"]
[Annotator "NA RC"]
[PlyCount "107"]
[EventDate "2022.06.16"]
[EventType "team-tourn"]
[EventCountry "FRA"]
[SourceTitle "playchess.com"]
[Source "ChessBase"]
[SourceQuality "1"]
[TimeControl "40/5400+30:1800+30"]

1. d4 {[%emt 0:00:03]} Nf6 {[%emt 0:00:05]} 2. c4 {[%emt 0:00:06]} e6 {[%emt 0:00:05]} 3. Nf3 {[%emt 0:00:05]} b6 {[%emt 0:00:04]} 4. g3 {[%emt 0:00:06]} Bb7 {[%emt 0:00:04]} 5. Bg2 {[%emt 0:00:07]} Bb4+ {[%emt 0:00:04]} 6. Bd2 {[%emt 0:00:05]} c5 {[%emt 0:00:05]} 7. Bxb4 {[%emt 0:04:06]} cxb4 {[%emt 0:00:17]} 8. a3 {[%emt 0:00:05]} bxa3 {[%emt 0:00:09]} 9. Rxa3 {[%emt 0:00:05]} O-O {[%emt 0:01:17]} 10. O-O {[%emt 0:00:05]} d5 {[%emt 0:09:26]} 11. cxd5 {[%emt 0:14:14]} Nxd5 {[%emt 0:03:29]} 12. e4 {[%emt 0:16:30]} Nb4 {[%emt 0:00:49]} 13. Nc3 {[%emt 0:12:53]} Qe7 {[%emt 0:03:50]} 14. Qb1 {[%emt 0:07:14]} N8c6 {[%emt 0:02:30]} 15. Rd1 {[%emt 0:06:09]} Rfd8 {[%emt 0:02:23]} 16. e5 {[%emt 0:10:51]} Na5 {[%emt 0:03:18]} 17. Ne4 {[%emt 0:00:51]} Bxe4 {[%emt 0:12:15]} 18. Qxe4 {[%emt 0:00:03]} Rac8 {[%emt 0:00:06]} 19. h4 {[%emt 0:04:09]} h6 {[%emt 0:02:39]} 20. g4 {[%emt 0:02:52]} g6 {[%emt 0:00:52]} 21. h5 {[%emt 0:09:12]} Kg7 {[%emt 0:01:48]} 22. g5 {[%emt 0:01:25]} hxg5 {[%emt 0:02:53]} 23. hxg6 {[%emt 0:00:08]} Nc4 {[%emt 0:05:20]} 24. Rb3 {[%emt 0:03:41]} fxg6 {[%emt 0:00:39]} 25. Qg4 {[%emt 0:01:17]} Nc6 {[%emt 0:01:43]} 26. Nxg5 {[%emt 0:01:00]} N4xe5 {[%emt 0:03:05]} 27. Nxe6+ {[%emt 0:00:08]} Kg8 {[%emt 0:01:21]} 28. dxe5 {[%emt 0:00:10]} Nxe5 {[%emt 0:00:46]} 29. Rxd8+ {[%emt 0:01:02]} Rxd8 {[%emt 0:00:04]} 30. Qh3 {[%emt 0:00:09]} Rd1+ {[%emt 0:04:26]} 31. Bf1 {[%emt 0:00:02]} Rd6 {[%emt 0:03:22]} 32. Rc3 {[%emt 0:03:48]} Rxe6 {[%emt 0:04:48]} 33. Rc8+ {[%emt 0:00:06]} Kf7 {[%emt 0:00:31]} 34. Rc7 {[%emt 0:00:04]} Nd7 {[%emt 0:04:25]} 35. Bc4 {[%emt 0:00:01]} Qg5+ {[%emt 0:00:04]} 36. Kf1 {[%emt 0:02:28]} Qc1+ {[%emt 0:00:44]} 37. Kg2 {[%emt 0:00:02]} Qg5+ {[%emt 0:00:05]} 38. Qg3 {[%emt 0:00:05]} Qxg3+ {[%emt 0:02:31]} 39. Kxg3 {[%emt 0:00:02]} Ke7 {[%emt 0:00:06]} 40. Bxe6 {[%emt 0:00:05]} Kxe6 {[%emt 0:00:02]} 41. Rxa7 {[%emt 0:30:05]} Nc5 {[%emt 0:31:40]} 42. Rc7 {[%emt 0:04:34]} Kd5 {[%emt 0:06:34]} 43. Rg7 {[%emt 0:00:17]} b5 {[%emt 0:04:19]} 44. Rxg6 {[%emt 0:00:07]} Nd3 {[%emt 0:00:06]} 45. b3 {[%emt 0:00:58]} Nc1 {[%emt 0:00:12]} 46. Rg5+ {[%emt 0:00:00]} Kc6 {[%emt 0:00:00]} 47. b4 {[%emt 0:00:00]} Nd3 {[%emt 0:00:00]} 48. Rg4 {[%emt 0:00:00]} Kd5 {[%emt 0:00:00]} 49. Rh4 {[%emt 0:00:00]} Ne1 {[%emt 0:00:00]} 50. Rh1 {[%emt 0:00:00]} Nc2 {[%emt 0:00:00]} 51. Rb1 {[%emt 0:00:00]} Ke5 {[%emt 0:00:00]} 52. Kg4 {[%emt 0:00:00]} Nd4 {[%emt 0:00:00]} 53. f4+ {[%emt 0:00:00]} Kf6 {[%emt 0:00:00]} 54. Rc1 {[%emt 0:00:00]} 1-0